[Event "Early-Titled-Tuesday-Blitz-March-05-2024"]
[Site "Chess.com"]
[Date "2024.03.05"]
[Round "3"]
[White "Alenzer"]
[Black "giomar27"]
[Result "1/2-1/2"]
[WhiteElo "2177"]
[BlackElo "2394"]
[TimeControl "180+1"]
[EndTime "8:33:31 PST"]
[Termination "Game drawn - insufficient material"]

1. e4 {[%clk 0:03:00.9]} 1... g6 {[%clk 0:02:58.5]} 2. d4 {[%clk 0:03:00.5]}
2... Bg7 {[%clk 0:02:58.5]} 3. Nc3 {[%clk 0:03:00.4]} 3... a6 {[%clk 0:02:58.6]}
4. Be3 {[%clk 0:02:56.9]} 4... b5 {[%clk 0:02:57.7]} 5. a3 {[%clk 0:02:55.9]}
5... d6 {[%clk 0:02:57.5]} 6. Qd2 {[%clk 0:02:54.9]} 6... Nd7 {[%clk 0:02:57.5]}
7. f4 {[%clk 0:02:54.4]} 7... c5 {[%clk 0:02:54]} 8. Nf3 {[%clk 0:02:52]} 8...
Bb7 {[%clk 0:02:38.9]} 9. Be2 {[%clk 0:02:43.4]} 9... Ngf6 {[%clk 0:02:37.8]}
10. e5 {[%clk 0:02:23.9]} 10... Ng4 {[%clk 0:02:37.8]} 11. exd6 {[%clk
0:02:14.1]} 11... exd6 {[%clk 0:02:31.7]} 12. dxc5 {[%clk 0:01:58.1]} 12... Nxc5
{[%clk 0:02:30.8]} 13. Bd4 {[%clk 0:01:52.9]} 13... O-O {[%clk 0:02:21.1]} 14.
Bxg7 {[%clk 0:01:51.8]} 14... Kxg7 {[%clk 0:02:21.4]} 15. h3 {[%clk 0:01:45.9]}
15... Nf6 {[%clk 0:02:19.2]} 16. O-O-O {[%clk 0:01:45.5]} 16... Nfe4 {[%clk
0:02:06.5]} 17. Qd4+ {[%clk 0:01:35.2]} 17... Qf6 {[%clk 0:02:06.4]} 18. Qxf6+
{[%clk 0:01:24.8]} 18... Kxf6 {[%clk 0:02:07.3]} 19. Nd5+ {[%clk 0:01:10.6]}
19... Bxd5 {[%clk 0:01:49.6]} 20. Rxd5 {[%clk 0:01:09.4]} 20... Ng3 {[%clk
0:01:50.5]} 21. Re1 {[%clk 0:01:06.3]} 21... Rfe8 {[%clk 0:01:50.7]} 22. Kd1
{[%clk 0:00:55.6]} 22... Nce4 {[%clk 0:01:46.8]} 23. Ng5 {[%clk 0:00:39]} 23...
Nxe2 {[%clk 0:01:26.2]} 24. Rxe2 {[%clk 0:00:36.7]} 24... Nxg5 {[%clk 0:01:26]}
25. fxg5+ {[%clk 0:00:36]} 25... Kg7 {[%clk 0:01:22.4]} 26. Rxd6 {[%clk
0:00:35.8]} 26... Rxe2 {[%clk 0:01:21.6]} 27. Kxe2 {[%clk 0:00:35.7]} 27... Re8+
{[%clk 0:01:22.2]} 28. Kf3 {[%clk 0:00:33.3]} 28... Rc8 {[%clk 0:01:18.6]} 29.
c3 {[%clk 0:00:33]} 29... Rc5 {[%clk 0:01:13.6]} 30. Rxa6 {[%clk 0:00:30.5]}
30... Rf5+ {[%clk 0:01:13.8]} 31. Ke3 {[%clk 0:00:27.2]} 31... Rxg5 {[%clk
0:01:14.1]} 32. g4 {[%clk 0:00:27.4]} 32... h5 {[%clk 0:01:13.1]} 33. Kf4 {[%clk
0:00:26.3]} 33... Rc5 {[%clk 0:01:00.6]} 34. Rb6 {[%clk 0:00:22.3]} 34... Rd5
{[%clk 0:00:57.7]} 35. Ke4 {[%clk 0:00:19.4]} 35... Rc5 {[%clk 0:00:57.6]} 36.
Kd4 {[%clk 0:00:19.1]} 36... Rc4+ {[%clk 0:00:56.5]} 37. Kd3 {[%clk 0:00:17.8]}
37... hxg4 {[%clk 0:00:56.8]} 38. hxg4 {[%clk 0:00:18]} 38... Rxg4 {[%clk
0:00:57.7]} 39. Rxb5 {[%clk 0:00:18.3]} 39... g5 {[%clk 0:00:54.8]} 40. c4
{[%clk 0:00:17.9]} 40... Rg1 {[%clk 0:00:52.3]} 41. a4 {[%clk 0:00:18]} 41...
Kg6 {[%clk 0:00:50.9]} 42. a5 {[%clk 0:00:18.2]} 42... g4 {[%clk 0:00:50.8]} 43.
a6 {[%clk 0:00:18.1]} 43... Ra1 {[%clk 0:00:50.7]} 44. Rb6+ {[%clk 0:00:17.5]}
44... Kg5 {[%clk 0:00:50.6]} 45. b4 {[%clk 0:00:16.7]} 45... g3 {[%clk
0:00:50.7]} 46. b5 {[%clk 0:00:14]} 46... g2 {[%clk 0:00:50.7]} 47. Rb8 {[%clk
0:00:14.1]} 47... Ra3+ {[%clk 0:00:38.5]} 48. Ke2 {[%clk 0:00:11.1]} 48... Rg3
{[%clk 0:00:38.6]} 49. Rg8+ {[%clk 0:00:09.9]} 49... Kf4 {[%clk 0:00:38.9]} 50.
Rxg3 {[%clk 0:00:04.1]} 50... Kxg3 {[%clk 0:00:39.8]} 51. a7 {[%clk 0:00:04.3]}
51... g1=Q {[%clk 0:00:39.9]} 52. a8=Q {[%clk 0:00:04.6]} 52... Qh2+ {[%clk
0:00:38.8]} 53. Kd3 {[%clk 0:00:04.7]} 53... Qh7+ {[%clk 0:00:37.8]} 54. Kd4
{[%clk 0:00:03.3]} 54... Qg7+ {[%clk 0:00:37.1]} 55. Kc5 {[%clk 0:00:03.6]}
55... Qe5+ {[%clk 0:00:37.1]} 56. Kb4 {[%clk 0:00:04.1]} 56... Qb2+ {[%clk
0:00:37.1]} 57. Kc5 {[%clk 0:00:04]} 57... f5 {[%clk 0:00:36.8]} 58. Qb8+ {[%clk
0:00:03.6]} 58... f4 {[%clk 0:00:36.7]} 59. Qg8+ {[%clk 0:00:03.5]} 59... Kf2
{[%clk 0:00:36.2]} 60. Qf7 {[%clk 0:00:03.7]} 60... f3 {[%clk 0:00:36]} 61. Qf4
{[%clk 0:00:03.9]} 61... Qa3+ {[%clk 0:00:31.9]} 62. Kc6 {[%clk 0:00:02.8]}
62... Ke2 {[%clk 0:00:31.6]} 63. Qe4+ {[%clk 0:00:02.6]} 63... Kf1 {[%clk
0:00:31.8]} 64. b6 {[%clk 0:00:02.3]} 64... f2 {[%clk 0:00:22]} 65. Qh1+ {[%clk
0:00:01.3]} 65... Ke2 {[%clk 0:00:21.9]} 66. Qe4+ {[%clk 0:00:01.9]} 66... Kd2
{[%clk 0:00:20.5]} 67. Qd4+ {[%clk 0:00:01.6]} 67... Ke1 {[%clk 0:00:19.5]} 68.
Qe4+ {[%clk 0:00:01.7]} 68... Kd1 {[%clk 0:00:18.4]} 69. Qh1+ {[%clk 0:00:02]}
69... Kc2 {[%clk 0:00:14.6]} 70. Qf1 {[%clk 0:00:02]} 70... Qf3+ {[%clk
0:00:12]} 71. Kc7 {[%clk 0:00:02]} 71... Qf7+ {[%clk 0:00:12]} 72. Kc6 {[%clk
0:00:02.4]} 72... Qe6+ {[%clk 0:00:11.8]} 73. Kc7 {[%clk 0:00:02.9]} 73... Qe7+
{[%clk 0:00:11.8]} 74. Kc6 {[%clk 0:00:03.2]} 74... Qf6+ {[%clk 0:00:11.5]} 75.
Kc7 {[%clk 0:00:03.6]} 75... Qf4+ {[%clk 0:00:11.6]} 76. Kc6 {[%clk 0:00:03.9]}
76... Qe4+ {[%clk 0:00:10.3]} 77. Kc7 {[%clk 0:00:04.1]} 77... Qe5+ {[%clk
0:00:08.8]} 78. Kc6 {[%clk 0:00:03.9]} 78... Qf6+ {[%clk 0:00:09]} 79. Kc7
{[%clk 0:00:04.2]} 79... Kb3 {[%clk 0:00:09.2]} 80. b7 {[%clk 0:00:04.3]} 80...
Qf7+ {[%clk 0:00:09.3]} 81. Kc8 {[%clk 0:00:04.6]} 81... Qxc4+ {[%clk
0:00:08.7]} 82. Qxc4+ {[%clk 0:00:02.8]} 82... Kxc4 {[%clk 0:00:09.6]} 83. b8=Q
{[%clk 0:00:03.5]} 83... f1=Q {[%clk 0:00:10.3]} 84. Qc7+ {[%clk 0:00:04.1]}
84... Kd5 {[%clk 0:00:09.8]} 85. Qd7+ {[%clk 0:00:04.4]} 85... Ke5 {[%clk
0:00:09.7]} 86. Qe7+ {[%clk 0:00:04.7]} 86... Kd4 {[%clk 0:00:09.9]} 87. Qd6+
{[%clk 0:00:05]} 87... Kc3 {[%clk 0:00:09.8]} 88. Qc5+ {[%clk 0:00:04.7]} 88...
Kb2 {[%clk 0:00:09.7]} 89. Qb4+ {[%clk 0:00:04.9]} 89... Ka1 {[%clk 0:00:09.8]}
90. Qa3+ {[%clk 0:00:05.1]} 90... Kb1 {[%clk 0:00:10]} 91. Qb3+ {[%clk
0:00:05.6]} 91... Kc1 {[%clk 0:00:10.1]} 92. Qc3+ {[%clk 0:00:05.8]} 92... Kd1
{[%clk 0:00:10.1]} 93. Qa1+ {[%clk 0:00:06.1]} 93... Ke2 {[%clk 0:00:10.1]} 94.
Qxf1+ {[%clk 0:00:07]} 94... Kxf1 {[%clk 0:00:10.9]} 1/2-1/2

[Event "Early-Titled-Tuesday-Blitz-March-05-2024"]
[Site "Chess.com"]
[Date "2024.03.05"]
[Round "3"]
[White "AlexPapasimakopoulos"]
[Black "Njal28"]
[Result "1/2-1/2"]
[WhiteElo "2738"]
[BlackElo "3030"]
[TimeControl "180+1"]
[EndTime "8:33:40 PST"]
[Termination "Game drawn - insufficient material"]

1. d4 {[%clk 0:03:00.9]} 1... Nf6 {[%clk 0:02:59.9]} 2. c4 {[%clk 0:03:00.7]}
2... g6 {[%clk 0:03:00.3]} 3. Nc3 {[%clk 0:03:01]} 3... d5 {[%clk 0:03:00.7]} 4.
Nf3 {[%clk 0:02:56.3]} 4... Bg7 {[%clk 0:03:00.3]} 5. Bg5 {[%clk 0:02:56.9]}
5... Ne4 {[%clk 0:02:58.1]} 6. Bf4 {[%clk 0:02:57.5]} 6... O-O {[%clk
0:02:38.6]} 7. e3 {[%clk 0:02:57.2]} 7... c5 {[%clk 0:02:35.6]} 8. cxd5 {[%clk
0:02:45.9]} 8... Bf5 {[%clk 0:02:31.5]} 9. Qb3 {[%clk 0:02:28.9]} 9... Nd7
{[%clk 0:02:24.3]} 10. Be2 {[%clk 0:02:23.7]} 10... cxd4 {[%clk 0:02:15.7]} 11.
exd4 {[%clk 0:02:24.6]} 11... Nb6 {[%clk 0:02:06.4]} 12. O-O {[%clk 0:02:23.9]}
12... Nxc3 {[%clk 0:02:04.7]} 13. bxc3 {[%clk 0:02:24.8]} 13... Nxd5 {[%clk
0:01:56.1]} 14. Be5 {[%clk 0:02:16.5]} 14... Rc8 {[%clk 0:01:42.5]} 15. c4
{[%clk 0:02:12.3]} 15... Bxe5 {[%clk 0:01:42.3]} 16. cxd5 {[%clk 0:02:00.9]}
16... Bf6 {[%clk 0:01:26.4]} 17. Qxb7 {[%clk 0:01:47.1]} 17... Rc2 {[%clk
0:01:26.4]} 18. Rfe1 {[%clk 0:01:42.4]} 18... Be4 {[%clk 0:00:45.8]} 19. Qxa7
{[%clk 0:01:42]} 19... Bxd5 {[%clk 0:00:37.3]} 20. Bd3 {[%clk 0:01:40.4]} 20...
Bxf3 {[%clk 0:00:11.4]} 21. Bxc2 {[%clk 0:01:34.4]} 21... Bxd4 {[%clk 0:00:12]}
22. Qa3 {[%clk 0:01:34.3]} 22... Bxa1 {[%clk 0:00:12]} 23. Rxa1 {[%clk
0:01:26.6]} 23... Bd5 {[%clk 0:00:11.6]} 24. Bb3 {[%clk 0:01:13.6]} 24... Bb7
{[%clk 0:00:08.7]} 25. Re1 {[%clk 0:01:06.4]} 25... e6 {[%clk 0:00:07.9]} 26.
Qb4 {[%clk 0:01:06]} 26... Qc7 {[%clk 0:00:06]} 27. Qc4 {[%clk 0:01:02.5]} 27...
Qxc4 {[%clk 0:00:05.7]} 28. Bxc4 {[%clk 0:01:03.4]} 28... Ra8 {[%clk 0:00:05.8]}
29. Rd1 {[%clk 0:00:55]} 29... Bc6 {[%clk 0:00:03.6]} 30. f3 {[%clk 0:00:54.5]}
30... Kg7 {[%clk 0:00:03.8]} 31. Kf2 {[%clk 0:00:53.9]} 31... h5 {[%clk
0:00:04]} 32. Ke3 {[%clk 0:00:53.5]} 32... Kf6 {[%clk 0:00:04.6]} 33. Bb3 {[%clk
0:00:48.1]} 33... h4 {[%clk 0:00:04.6]} 34. g3 {[%clk 0:00:45.2]} 34... g5
{[%clk 0:00:03.3]} 35. f4 {[%clk 0:00:41.6]} 35... hxg3 {[%clk 0:00:03.4]} 36.
hxg3 {[%clk 0:00:41.6]} 36... g4 {[%clk 0:00:04.3]} 37. Kd4 {[%clk 0:00:38.4]}
37... Bf3 {[%clk 0:00:03.1]} 38. Ra1 {[%clk 0:00:36]} 38... Rh8 {[%clk 0:00:04]}
39. a4 {[%clk 0:00:28.2]} 39... Rh3 {[%clk 0:00:04.9]} 40. Rg1 {[%clk
0:00:28.1]} 40... Rh2 {[%clk 0:00:05.5]} 41. Kc3 {[%clk 0:00:27.8]} 41... Ke7
{[%clk 0:00:04.1]} 42. a5 {[%clk 0:00:21.8]} 42... Kd6 {[%clk 0:00:04.5]} 43.
Bd1 {[%clk 0:00:22]} 43... Kc5 {[%clk 0:00:03.3]} 44. Bxf3 {[%clk 0:00:20.5]}
44... gxf3 {[%clk 0:00:04.2]} 45. Rf1 {[%clk 0:00:21]} 45... f2 {[%clk
0:00:03.4]} 46. Kd3 {[%clk 0:00:18.9]} 46... Rg2 {[%clk 0:00:03.9]} 47. Ke2
{[%clk 0:00:19]} 47... Rxg3 {[%clk 0:00:04.6]} 48. Kxf2 {[%clk 0:00:15.7]} 48...
Ra3 {[%clk 0:00:04.5]} 49. Rd1 {[%clk 0:00:12.1]} 49... Rxa5 {[%clk 0:00:04.5]}
50. Ke3 {[%clk 0:00:05.8]} 50... Kc6 {[%clk 0:00:04.2]} 51. Ke4 {[%clk
0:00:05.7]} 51... Rd5 {[%clk 0:00:04.1]} 52. Ra1 {[%clk 0:00:04.8]} 52... f5+
{[%clk 0:00:03.7]} 53. Ke3 {[%clk 0:00:04.7]} 53... Kd6 {[%clk 0:00:04.4]} 54.
Ra6+ {[%clk 0:00:04.3]} 54... Ke7 {[%clk 0:00:05.1]} 55. Ra8 {[%clk 0:00:04.9]}
55... Rb5 {[%clk 0:00:04.7]} 56. Kf3 {[%clk 0:00:03.8]} 56... Rb3+ {[%clk
0:00:04.9]} 57. Kf2 {[%clk 0:00:04.2]} 57... Kd6 {[%clk 0:00:05.6]} 58. Rd8+
{[%clk 0:00:03.9]} 58... Kc5 {[%clk 0:00:06.1]} 59. Ke2 {[%clk 0:00:04.3]} 59...
Kc4 {[%clk 0:00:06.3]} 60. Rd6 {[%clk 0:00:04.1]} 60... Rb2+ {[%clk 0:00:04.3]}
61. Ke3 {[%clk 0:00:04.5]} 61... Rb1 {[%clk 0:00:04.9]} 62. Ke2 {[%clk
0:00:04.1]} 62... Kc5 {[%clk 0:00:02.2]} 63. Rxe6 {[%clk 0:00:03.7]} 63... Rb2+
{[%clk 0:00:03]} 64. Kf3 {[%clk 0:00:03.9]} 64... Rb3+ {[%clk 0:00:03.2]} 65.
Kf2 {[%clk 0:00:04.4]} 65... Kd4 {[%clk 0:00:04.1]} 66. Re5 {[%clk 0:00:04.5]}
66... Ra3 {[%clk 0:00:04.7]} 67. Ke2 {[%clk 0:00:03.3]} 67... Rh3 {[%clk
0:00:04]} 68. Kf2 {[%clk 0:00:03.5]} 68... Ra3 {[%clk 0:00:04.1]} 69. Kg2 {[%clk
0:00:02.9]} 69... Rb3 {[%clk 0:00:04.2]} 70. Rxf5 {[%clk 0:00:03]} 70... Ke4
{[%clk 0:00:05.1]} 71. Rf8 {[%clk 0:00:03.3]} 71... Rc3 {[%clk 0:00:04.5]} 72.
f5 {[%clk 0:00:03.3]} 72... Ke5 {[%clk 0:00:05.3]} 73. f6 {[%clk 0:00:03.7]}
73... Ke6 {[%clk 0:00:05.8]} 74. Kf2 {[%clk 0:00:04.1]} 74... Rc5 {[%clk
0:00:05.4]} 75. Kg3 {[%clk 0:00:04.8]} 75... Rf5 {[%clk 0:00:06.3]} 76. f7
{[%clk 0:00:05]} 76... Ke7 {[%clk 0:00:03.5]} 77. Re8+ {[%clk 0:00:04.9]} 77...
Kxf7 {[%clk 0:00:03.8]} 78. Re4 {[%clk 0:00:05.8]} 78... Ra5 {[%clk 0:00:04.3]}
79. Rf4+ {[%clk 0:00:06.3]} 79... Kg6 {[%clk 0:00:04.9]} 80. Rf3 {[%clk
0:00:07.1]} 80... Kg5 {[%clk 0:00:05.2]} 81. Rb3 {[%clk 0:00:07.7]} 81... Rd5
{[%clk 0:00:05.5]} 82. Rc3 {[%clk 0:00:07.9]} 82... Re5 {[%clk 0:00:06.1]} 83.
Rd3 {[%clk 0:00:08.3]} 83... Rc5 {[%clk 0:00:06.7]} 84. Rb3 {[%clk 0:00:08.5]}
84... Rc1 {[%clk 0:00:07.2]} 85. Kf3 {[%clk 0:00:08.1]} 85... Rh1 {[%clk
0:00:06.9]} 86. Rb5+ {[%clk 0:00:08.7]} 86... Kf6 {[%clk 0:00:07.6]} 87. Rb6+
{[%clk 0:00:09]} 87... Ke7 {[%clk 0:00:07.9]} 88. Rb7+ {[%clk 0:00:09.1]} 88...
Kd6 {[%clk 0:00:08.3]} 89. Rb6+ {[%clk 0:00:09.4]} 89... Kd5 {[%clk 0:00:09]}
90. Rb5+ {[%clk 0:00:08.1]} 90... Kc4 {[%clk 0:00:09.4]} 91. Rg5 {[%clk
0:00:08.4]} 91... Kd4 {[%clk 0:00:09.5]} 92. Rg4+ {[%clk 0:00:08.3]} 92... Ke5
{[%clk 0:00:09.9]} 93. Re4+ {[%clk 0:00:09]} 93... Kd6 {[%clk 0:00:09.4]} 94.
Rd4+ {[%clk 0:00:09.2]} 94... Kc6 {[%clk 0:00:09.8]} 95. Rd2 {[%clk 0:00:09]}
95... Kb5 {[%clk 0:00:07.7]} 96. Rc2 {[%clk 0:00:08.3]} 96... Ka4 {[%clk
0:00:07.5]} 97. Rb2 {[%clk 0:00:08.3]} 97... Ka3 {[%clk 0:00:07]} 98. Rb8 {[%clk
0:00:08.9]} 98... Ka2 {[%clk 0:00:06.6]} 99. Ke3 {[%clk 0:00:09.3]} 99... Rb1
{[%clk 0:00:05.7]} 100. Ra8+ {[%clk 0:00:09]} 100... Kb2 {[%clk 0:00:05.7]} 101.
Rb8+ {[%clk 0:00:09.9]} 101... Kc1 {[%clk 0:00:05.9]} 102. Rxb1+ {[%clk
0:00:10.8]} 102... Kxb1 {[%clk 0:00:06.7]} 1/2-1/2

[Event "Early-Titled-Tuesday-Blitz-March-05-2024"]
[Site "Chess.com"]
[Date "2024.03.05"]
[Round "3"]
[White "AradNazari"]
[Black "Dacean99"]
[Result "1-0"]
[WhiteElo "2853"]
[BlackElo "2566"]
[TimeControl "180+1"]
[EndTime "8:33:40 PST"]
[Termination "AradNazari won by resignation"]

1. e4 {[%clk 0:03:00.9]} 1... c5 {[%clk 0:02:59.1]} 2. Nf3 {[%clk 0:03:00.8]}
2... d6 {[%clk 0:02:59.3]} 3. d4 {[%clk 0:03:00]} 3... cxd4 {[%clk 0:03:00.2]}
4. Nxd4 {[%clk 0:03:00.5]} 4... Nf6 {[%clk 0:03:00.3]} 5. Nc3 {[%clk 0:03:00.7]}
5... a6 {[%clk 0:02:59.7]} 6. Bg5 {[%clk 0:03:00.9]} 6... e6 {[%clk 0:02:59.6]}
7. f4 {[%clk 0:02:59.9]} 7... Be7 {[%clk 0:02:58.3]} 8. e5 {[%clk 0:02:36.3]}
8... dxe5 {[%clk 0:02:50.2]} 9. fxe5 {[%clk 0:02:37.2]} 9... Nd5 {[%clk
0:02:37.8]} 10. Bxe7 {[%clk 0:02:32.5]} 10... Qxe7 {[%clk 0:02:36.1]} 11. Nf5
{[%clk 0:02:23.5]} 11... exf5 {[%clk 0:02:08.7]} 12. Nxd5 {[%clk 0:02:23.4]}
12... Qxe5+ {[%clk 0:02:07.4]} 13. Qe2 {[%clk 0:01:56.4]} 13... Qxe2+ {[%clk
0:02:06.4]} 14. Bxe2 {[%clk 0:01:57.3]} 14... O-O {[%clk 0:02:06.2]} 15. Nb6
{[%clk 0:01:40.8]} 15... Ra7 {[%clk 0:02:05.6]} 16. O-O-O {[%clk 0:01:41.5]}
16... Be6 {[%clk 0:02:05.2]} 17. Bf3 {[%clk 0:01:38.5]} 17... Nc6 {[%clk
0:02:04.1]} 18. Rhe1 {[%clk 0:01:36.4]} 18... a5 {[%clk 0:02:01.6]} 19. c4
{[%clk 0:01:25.4]} 19... a4 {[%clk 0:01:55.8]} 20. Bxc6 {[%clk 0:01:15.4]} 20...
bxc6 {[%clk 0:01:54.4]} 21. Rd6 {[%clk 0:01:15.1]} 21... Rb8 {[%clk 0:01:47.3]}
22. Rxc6 {[%clk 0:01:09.9]} 22... Ra6 {[%clk 0:01:29.3]} 23. c5 {[%clk 0:01:05]}
23... Bxa2 {[%clk 0:01:16.5]} 24. Re3 {[%clk 0:00:49.4]} 24... g6 {[%clk
0:01:08.4]} 25. g3 {[%clk 0:00:42.2]} 25... Kg7 {[%clk 0:01:00.3]} 26. Rc7
{[%clk 0:00:36.4]} 26... Rbxb6 {[%clk 0:00:50.7]} 27. cxb6 {[%clk 0:00:35.9]}
27... Rxb6 {[%clk 0:00:51.6]} 28. Rc5 {[%clk 0:00:27.5]} 28... Bb3 {[%clk
0:00:50.3]} 29. Kd2 {[%clk 0:00:25.2]} 29... Rd6+ {[%clk 0:00:49.1]} 30. Rd3
{[%clk 0:00:25.2]} 30... Re6 {[%clk 0:00:47.2]} 31. Re3 {[%clk 0:00:23.4]} 31...
Rd6+ {[%clk 0:00:46.6]} 32. Kc3 {[%clk 0:00:23.9]} 32... Rd1 {[%clk 0:00:45.5]}
33. Re2 {[%clk 0:00:22.5]} 33... Kf6 {[%clk 0:00:39.1]} 34. Rd2 {[%clk
0:00:22.5]} 34... Rc1+ {[%clk 0:00:37.3]} 35. Kd4 {[%clk 0:00:22.2]} 35... Rxc5
{[%clk 0:00:35.1]} 36. Kxc5 {[%clk 0:00:22]} 36... g5 {[%clk 0:00:35.8]} 37. Kd4
{[%clk 0:00:22.4]} 37... Kg6 {[%clk 0:00:26.4]} 38. Re2 {[%clk 0:00:21.3]} 38...
h6 {[%clk 0:00:23.9]} 39. Re8 {[%clk 0:00:21.3]} 39... Kf6 {[%clk 0:00:20.9]}
40. Ra8 {[%clk 0:00:20.9]} 40... Kg6 {[%clk 0:00:20.2]} 41. Ra6+ {[%clk
0:00:21.3]} 41... Kh5 {[%clk 0:00:19.3]} 42. Ke5 {[%clk 0:00:18.5]} 42... Kg4
{[%clk 0:00:16.9]} 43. Rxh6 {[%clk 0:00:18.5]} 43... f4 {[%clk 0:00:16.2]} 44.
gxf4 {[%clk 0:00:17.5]} 44... gxf4 {[%clk 0:00:17.1]} 45. Rf6 {[%clk 0:00:18.1]}
45... f3 {[%clk 0:00:15.9]} 46. Kd4 {[%clk 0:00:10.3]} 46... Kh3 {[%clk
0:00:10.2]} 47. Ke3 {[%clk 0:00:10]} 47... Kxh2 {[%clk 0:00:06.7]} 48. Kxf3
{[%clk 0:00:10.2]} 48... Bd5+ {[%clk 0:00:06.9]} 49. Kf2 {[%clk 0:00:09.7]}
49... Kh3 {[%clk 0:00:07.5]} 50. Rf5 {[%clk 0:00:05.7]} 50... Bb3 {[%clk
0:00:05.9]} 51. Rf4 {[%clk 0:00:05.8]} 51... Bd1 {[%clk 0:00:04.1]} 52. Rd4
{[%clk 0:00:06]} 52... Bb3 {[%clk 0:00:03.9]} 53. Re4 {[%clk 0:00:05.9]} 53...
Bc2 {[%clk 0:00:02.8]} 54. Rb4 {[%clk 0:00:06.1]} 54... Bb3 {[%clk 0:00:03.1]}
55. Rd4 {[%clk 0:00:06.7]} 55... Bc2 {[%clk 0:00:03.3]} 56. Kf3 {[%clk
0:00:03.9]} 56... Bb3 {[%clk 0:00:02.7]} 57. Rd6 {[%clk 0:00:04.2]} 57... Kh4
{[%clk 0:00:02.5]} 58. Kf4 {[%clk 0:00:04.6]} 58... Kh5 {[%clk 0:00:02.9]} 59.
Rf6 {[%clk 0:00:05.1]} 59... Be6 {[%clk 0:00:02.8]} 60. Kf3 {[%clk 0:00:02.2]}
60... Kg5 {[%clk 0:00:03.2]} 61. Rf4 {[%clk 0:00:02.8]} 61... Bd5+ {[%clk
0:00:02.9]} 62. Ke3 {[%clk 0:00:03.5]} 62... Bb3 {[%clk 0:00:03.3]} 63. Rb4
{[%clk 0:00:04]} 63... f5 {[%clk 0:00:03.5]} 64. Kf3 {[%clk 0:00:04.6]} 64...
Kf6 {[%clk 0:00:03.1]} 65. Kf4 {[%clk 0:00:05]} 65... Bc2 {[%clk 0:00:03.7]} 66.
Rb5 {[%clk 0:00:04.7]} 66... Ke6 {[%clk 0:00:03.5]} 67. Rc5 {[%clk 0:00:04.6]}
67... Be4 {[%clk 0:00:02.6]} 68. Re5+ {[%clk 0:00:05]} 68... Kd6 {[%clk
0:00:02.5]} 69. Ra5 {[%clk 0:00:05.2]} 69... Bc2 {[%clk 0:00:02.9]} 70. Rb5
{[%clk 0:00:04.5]} 70... Kc6 {[%clk 0:00:02.9]} 71. Rb8 {[%clk 0:00:04.8]} 71...
Kd5 {[%clk 0:00:02.6]} 72. Rc8 {[%clk 0:00:04.6]} 72... Be4 {[%clk 0:00:01.9]}
73. Rc3 {[%clk 0:00:05.1]} 73... Kd4 {[%clk 0:00:01.7]} 74. Rc7 {[%clk
0:00:04.4]} 74... Bd3 {[%clk 0:00:01.7]} 75. Kf3 {[%clk 0:00:04.6]} 75... Be4+
{[%clk 0:00:01.7]} 76. Kf2 {[%clk 0:00:05.3]} 76... Bd3 {[%clk 0:00:02.3]} 77.
Ke1 {[%clk 0:00:05.6]} 77... Be4 {[%clk 0:00:02.8]} 78. Kd2 {[%clk 0:00:06]}
78... Ke5 {[%clk 0:00:03]} 79. Rc5+ {[%clk 0:00:05.8]} 79... Kf4 {[%clk
0:00:03.5]} 80. Ra5 {[%clk 0:00:06.2]} 80... Kg3 {[%clk 0:00:04]} 81. Rxa4
{[%clk 0:00:06.4]} 81... Bg2 {[%clk 0:00:04.2]} 82. Ra7 {[%clk 0:00:05.3]} 82...
Bf3 {[%clk 0:00:03.7]} 83. Rg7+ {[%clk 0:00:05.4]} 83... Bg4 {[%clk 0:00:04.2]}
84. Ke1 {[%clk 0:00:05.1]} 84... f4 {[%clk 0:00:04.5]} 85. b4 {[%clk 0:00:03.2]}
85... Kf3 {[%clk 0:00:03.9]} 86. b5 {[%clk 0:00:02.4]} 86... Bf5 {[%clk
0:00:03]} 87. b6 {[%clk 0:00:02.9]} 87... Ke3 {[%clk 0:00:02.7]} 88. Re7+ {[%clk
0:00:03.6]} 88... Be4 {[%clk 0:00:02.6]} 89. Rxe4+ {[%clk 0:00:03.6]} 89... Kxe4
{[%clk 0:00:02.6]} 90. b7 {[%clk 0:00:04.5]} 90... Kf3 {[%clk 0:00:03.1]} 91.
b8=Q {[%clk 0:00:05.4]} 91... Kg2 {[%clk 0:00:04]} 92. Qxf4 {[%clk 0:00:05.3]}
1-0